bitfinex-derivatives/quotes_SOLF0:USTF0_20250816
["timestamp","ask_amount","ask_price","bid_price","bid_amount"]
[1755306863112,2.84,187.49,187.42,2.97]
[1755306863311,3.96774077,187.48,187.42,2.97]
[1755306863509,2.84,187.45,187.43,2.97]
[1755306863710,2.84,187.44,187.43,2.97]
[1755306863911,2.84,187.44,187.37,2.97]
[1755306864113,2.84,187.49,187.37,2.97]
[1755306864420,2.84,187.47,187.37,2.97]
[1755306864615,2.84,187.45,187.37,2.97]
[1755306865020,2.84,187.45,187.4,2.97]
[1755306865313,2.84,187.48,187.37,2.97]
[1755306865514,2.84,187.46,187.37,2.97]
[1755306865719,2.84,187.44,187.37,5.333]
[1755306865921,6.8181807,187.43,187.38,2.97]
[1755306866123,2.84,187.43,187.38,2.97]
[1755306866315,2.84,187.42,187.38,2.97]
[1755306866622,3.98093623,187.41,187.39,2.97]
[1755306866823,2.84,187.4,187.39,2.97]
[1755306867025,6.82132029,187.4,187.39,2.97]
[1755306867225,3.98132029,187.4,187.37,2.97]
[1755306867416,4.49180686,187.44,187.25,10.6728]
[1755306867417,2.84,187.39,187.38,2.97]
[1755306867815,2.84,187.39,187.32,2.97]
[1755306868425,2.84,187.42,187.33,2.97]
[1755306868620,3.98391543,187.41,187.33,2.97]
[1755306868825,2.84,187.42,187.36,5.3331]
[1755306869026,3.98388009,187.41,187.37,2.97]
[1755306869226,2.84,187.42,187.37,2.97]
[1755306869424,3.98539522,187.41,187.37,8.3029]
[1755306869624,2.84,187.42,187.38,2.97]
[1755306870226,3.98707241,187.41,187.37,5.3329]
[1755306870425,2.84,187.41,187.39,2.97]
[1755306870726,2.84,187.41,187.4,2.97]
[1755306871826,4.49180686,187.46,187.37,5.3329]
[1755306872031,2.84,187.42,187.41,2.97]
[1755306872329,2.84,187.41,187.4,2.97]
[1755306873829,2.84,187.46,187.4,2.97]
[1755306874034,3.99289185,187.45,187.4,2.97]
[1755306874332,2.84,187.43,187.4,2.97]
[1755306874533,2.84,187.43,187.4,8.302]
[1755306874832,2.84,187.43,187.42,2.97]
[1755306876026,2.84,187.48,187.4,2.97]
[1755306876228,3.99536326,187.47,187.4,2.97]
[1755306876436,2.84,187.45,187.35,5.4356586]
[1755306876635,2.84,187.45,187.36,2.97]
[1755306876825,2.84,187.43,187.36,2.97]
[1755306877030,2.84,187.41,187.38,0.04035111]
[1755306877332,2.87458248,187.41,187.38,0.04035111]
[1755306877529,3.99878847,187.4,187.38,0.04035111]
[1755306877834,6.83905152,187.39,187.38,0.04035111]
[1755306878136,2.84,187.39,187.38,0.04035111]
[1755306879825,6.83645919,187.39,187.38,0.04035111]
[1755306881137,2.84,187.39,187.38,0.04035111]
[1755306888041,6.83127514,187.39,187.38,0.04035111]
[1755306888344,6.83134229,187.39,187.38,0.04035111]
[1755306889036,2.84,187.39,187.38,0.04035111]
[1755306889238,6.8324315,187.39,187.38,0.04035111]
[1755306889635,0.03458248,187.41,187.39,3.12]
[1755306889936,2.99458248,187.41,187.38,0.04035111]
[1755306890140,2.99458248,187.41,187.39,3.12]
[1755306890141,2.96,187.4,187.39,3.12]
[1755306890441,2.99458248,187.41,187.4,3.12]
[1755306893238,0.03458248,187.41,187.4,3.12]
[1755306895740,0.03458248,187.41,187.4,8.4522]
[1755306896842,0.03458248,187.41,187.38,0.04035111]
[1755306896843,2.96,187.46,187.42,3.12]
[1755306897342,358.38,187.48,187.42,8.4516]
[1755306897537,358.38,187.48,187.42,5.3316]
[1755306897737,361.34,187.48,187.43,3.12]
[1755306897933,2.96,187.48,187.37,5.4356586]
[1755306898237,2.96,187.47,187.44,3.12]
[1755306898444,2.96,187.46,187.45,3.12]
[1755306899642,2.96,187.48,187.43,0.0361358]
[1755306899842,2.96,187.48,187.43,3.1561358]
[1755306900045,4.00475974,187.47,187.43,0.0361358]
[1755306900250,4.00475974,187.46,187.43,0.0361358]
[1755306900547,2.96,187.44,187.29,5.4356586]
[1755306900743,2.96,187.42,187.35,3.12]
[1755306901044,2.96,187.4,187.35,3.12]
[1755306901242,2.96,187.39,187.35,3.12]
[1755306901438,2.96,187.38,187.35,3.12]
[1755306901642,137.32,187.43,187.35,3.12]
[1755306901843,2.96,187.39,187.35,3.12]
[1755306903244,2.96,187.42,187.35,3.12]
[1755306903443,0.03796696,187.39,187.35,3.15881573]
[1755306904240,0.03796696,187.39,187.37,3.12]
[1755306906242,0.03796696,187.39,187.37,8.453]
[1755306906546,0.03796696,187.39,187.38,3.12]
[1755306908749,2.96,187.45,187.38,3.66]
[1755306908943,2.96,187.45,187.39,5.3323]
[1755306909143,2.96,187.45,187.4,3.12]
[1755306909342,2.96,187.46,187.4,3.12]
[1755306910050,2.96,187.45,187.42,3.12]
[1755306910250,2.96,187.44,187.43,3.12]
[1755306910852,137.34,187.47,187.43,3.12]
[1755306911052,2.96,187.45,187.44,3.12]
[1755306911841,2.96,187.45,187.41,0.03837736]
[1755306912150,2.96,187.45,187.42,3.12]
[1755306912453,2.96,187.44,187.43,3.12]
[1755306913952,137.34,187.47,187.43,3.12]
[1755306914252,140.3,187.47,187.44,3.12]
[1755306914452,2.96,187.46,187.43,3.12]
[1755306914751,2.96,187.46,187.44,3.12]
[1755306914952,2.96,187.45,187.42,3.12]
[1755306915653,2.96,187.45,187.42,8.4516]
[1755306915956,2.96,187.46,187.41,0.03837736]
[1755306916746,137.34,187.47,187.41,0.03837736]
[1755306916747,4.00893106,187.45,187.41,0.03837736]
[1755306917057,2.96,187.43,187.41,0.03837736]
[1755306917254,143.64893106,187.42,187.41,0.03837736]
[1755306918251,139.64,187.42,187.41,0.03837736]
[1755306919457,2.96,187.42,187.41,0.03837736]
[1755306921157,2.96,187.42,187.41,3.16837736]
[1755306921960,136.6,187.43,187.41,3.16837736]
[1755306922254,136.6,187.43,187.41,0.03837736]
[1755306922456,136.6,187.43,187.42,3.13]
[1755306922663,139.55,187.43,187.42,3.13]
[1755306922863,358.44,187.49,187.42,6.57284089]
[1755306923057,136.68,187.48,187.43,3.13]
[1755306923257,2.95,187.46,187.43,3.13]
[1755306923456,2.95,187.47,187.43,3.13]
[1755306923659,136.68,187.48,187.43,3.13]
[1755306924461,136.68,187.48,187.45,5.3307]
[1755306924662,139.63,187.48,187.47,3.13]
[1755306924863,2.95,187.5,187.47,3.13]
[1755306925070,4.49180686,187.57,187.47,3.13]
[1755306925071,2.95,187.52,187.47,3.13]
[1755306925359,2.95,187.52,187.47,3.1642982]
[1755306925564,136.64,187.53,187.47,3.1642982]
[1755306925759,139.59,187.53,187.47,3.1642982]
[1755306925952,139.59,187.53,187.49,5.3295]
[1755306926265,139.59,187.53,187.5,3.13]
[1755306926863,139.59,187.53,187.49,5.3295]
[1755306927063,139.59,187.53,187.52,3.13]
[1755306927257,2.95,187.52,187.48,3.13]
[1755306927464,2.95,187.52,187.47,3.1642982]
[1755306927657,2.95,187.52,187.48,3.13]
[1755306929666,2.95,187.52,187.47,0.0342982]
[1755306930062,2.95,187.5,187.47,0.0342982]
[1755306931269,2.95,187.48,187.47,0.0342982]
[1755306931469,4.01763288,187.48,187.47,0.0342982]
[1755306931664,6.96763288,187.48,187.47,0.0342982]
[1755306932063,6.96763288,187.48,187.39,5.83701106]
[1755306932064,2.95,187.47,187.39,5.83701106]
[1755306932263,2.95,187.45,187.38,3.13]
[1755306932569,2.95,187.45,187.35,3.13]
[1755306932867,2.95,187.45,187.37,5.83701106]
[1755306933065,2.95,187.45,187.38,3.13]
[1755306933668,2.95,187.45,187.39,5.3323]
[1755306933871,2.95,187.45,187.4,3.13]
[1755306934667,136.44,187.46,187.41,3.13]
[1755306934867,139.39,187.46,187.41,3.13]
[1755306935062,2.95,187.45,187.41,3.13]
[1755306935972,136.44,187.46,187.41,3.13]
[1755306936266,2.95,187.45,187.37,3.13]
[1755306937370,2.95,187.43,187.37,3.13]
[1755306939170,136.08,187.48,187.37,3.13]
[1755306939372,2.95,187.46,187.37,3.13]
[1755306939872,2.95,187.46,187.41,3.13]
[1755306940168,2.95,187.45,187.41,3.13]
[1755306940468,2.95,187.45,187.41,5.3319]
[1755306940669,2.95,187.45,187.42,3.13]
[1755306941471,2.95,187.49,187.43,3.13]
[1755306941866,4.0215999,187.48,187.44,3.13]
[1755306942068,2.95,187.46,187.44,3.13]
[1755306942263,2.95,187.49,187.44,3.13]
[1755306942470,4.02155711,187.48,187.45,3.13]
[1755306942670,2.95,187.46,187.41,3.13]
[1755306942871,2.95,187.49,187.41,3.13]
[1755306944069,2.95,187.47,187.41,3.13]
[1755306947576,2.95,187.45,187.37,3.13]
[1755306947778,2.95,187.43,187.37,3.13]
[1755306948067,20.49180686,187.48,187.32,222.76988134]
[1755306948068,2.95,187.41,187.33,5.334]
[1755306948273,2.95,187.41,187.34,3.13]
[1755306956179,4.04058522,187.4,187.34,3.13]
[1755306956472,3.09,187.38,187.34,3.13]
[1755306956673,3.09,187.38,187.32,3.03]
[1755306957577,3.09,187.38,187.3,11.81006049]
[1755306957778,3.09,187.38,187.31,8.3647]
[1755306957972,3.09,187.38,187.32,3.03]
[1755306958676,3.09,187.38,187.32,8.3645]
[1755306958876,3.09,187.42,187.33,6.47506049]
[1755306959078,4.03776543,187.41,187.33,3.44506049]
[1755306959275,3.09,187.4,187.34,3.03]
[1755306961474,3.09,187.4,187.32,3.03]
[1755306961682,20.49180686,187.44,187.32,3.03]
[1755306961876,5.96034396,187.46,187.24,99.0]
[1755306961877,3.09,187.4,187.34,3.03]
[1755306966178,3.09,187.4,187.3,3.44506049]
[1755306966378,3.09,187.4,187.31,3.03]
[1755306966687,3.09,187.38,187.31,3.03]
[1755306966983,7.47956153,187.39,187.31,3.03]
[1755306966984,3.09,187.36,187.31,3.03]
[1755306968281,3.09,187.36,187.27,3.03]
[1755306968488,3.98242418,187.35,187.27,3.03]
[1755306968784,3.09,187.34,187.27,3.03]
[1755306970782,3.09,187.32,187.25,3.03]
[1755306980595,2.98,187.3,187.19,3.44506049]
[1755306980794,2.98,187.3,187.2,3.1]
[1755306982595,2.98,187.28,187.2,3.1]
[1755306987102,18.98,187.28,187.2,3.1]
[1755306987303,3.96925758,187.27,187.18,3.1]
[1755306987602,2.98,187.25,187.18,3.1]
[1755306987802,2.98,187.23,187.18,3.1]
[1755306988101,2.98,187.22,187.18,3.1]
[1755306988505,2.98,187.22,187.14,3.1]
[1755306988705,2.98,187.22,187.16,3.44506049]
[1755306988900,2.98,187.22,187.17,3.1]
[1755306990903,134.34,187.23,187.17,3.1]
[1755306991103,2.98,187.21,187.17,3.1]
[1755306992897,134.34,187.23,187.18,3.1]
[1755306993092,2.98,187.22,187.18,3.1]
[1755306993495,2.98,187.21,187.18,3.1]
[1755306994700,137.32,187.23,187.18,3.1]
[1755306995094,134.34,187.23,187.18,3.1]
[1755306995405,2.98,187.22,187.18,3.1]
[1755306997602,2.98,187.21,187.18,3.1]
[1755307000610,2.98,187.22,187.17,3.44506049]
[1755307000810,2.98,187.22,187.19,3.1]
[1755307001410,2.98,187.22,187.17,3.1]
[1755307001610,2.98,187.22,187.14,3.1]
[1755307002613,2.98,187.22,187.16,3.1]
[1755307008709,2.98,187.22,187.14,3.11]
[1755307009306,3.97601916,187.21,187.14,3.11]
[1755307009507,3.14,187.2,187.14,3.11]
[1755307014317,3.14,187.18,187.14,3.11]
[1755307014520,3.14,187.16,187.12,3.11]
[1755307014717,3.98566891,187.15,187.09,3.11]
[1755307014915,3.14,187.13,187.09,3.11]
[1755307015312,3.14,187.15,187.09,6.55506049]
[1755307015517,3.14,187.15,187.1,3.11]
[1755307016527,3.14,187.15,187.1,8.4506]
[1755307016721,3.14,187.15,187.11,3.11]
[1755307018127,3.14,187.18,187.12,3.11]
[1755307019233,3.98351798,187.17,187.1,3.11]
[1755307019436,3.14,187.15,187.1,3.11]
[1755307021732,3.14,187.14,187.11,3.11]
[1755307021932,3.44506049,187.2,187.11,3.11]
[1755307022136,3.14,187.18,187.11,3.11]
[1755307022436,3.14,187.16,187.11,3.11]
[1755307023130,3.44506049,187.2,187.12,3.11]
[1755307023131,3.14,187.2,187.12,3.11]
[1755307023324,3.14,187.18,187.14,3.44506049]
[1755307023529,134.3,187.23,187.15,3.11]
[1755307023734,3.14,187.17,187.15,3.11]
[1755307024126,364.76034396,187.28,187.16,3.11]
[1755307024127,3.14,187.22,187.16,3.11]
[1755307024332,4.469729,187.26,187.18,3.11]
[1755307024333,134.28,187.26,187.18,3.11]
[1755307024530,3.14,187.26,187.23,3.44506049]
[1755307024939,3.14,187.26,187.25,3.11]
[1755307025331,358.8,187.28,187.25,3.11]
[1755307025332,361.94,187.28,187.25,3.11]
[1755307025534,3.14,187.28,187.25,3.11]
[1755307026237,3.14,187.27,187.23,3.44506049]
[1755307026440,3.14,187.31,187.24,3.11]
[1755307029332,3.14,187.31,187.27,3.11]
[1755307029537,3.14,187.31,187.26,3.44506049]
[1755307029839,3.14,187.31,187.28,3.11]
[1755307030632,3.14,187.3,187.29,3.11]
[1755307030835,3.14,187.36,187.29,3.44506049]
[1755307031037,3.14,187.34,187.3,3.11]
[1755307031235,3.14,187.34,187.31,3.11]
[1755307032740,134.22,187.37,187.32,3.11]
[1755307032741,3.14,187.33,187.32,3.11]
[1755307034841,3.14,187.33,187.29,3.44506049]
[1755307035044,3.14,187.33,187.3,3.11]
[1755307035645,3.14,187.33,187.26,6.55506049]
[1755307036045,3.14,187.33,187.27,3.11]
[1755307039648,3.14,187.33,187.23,3.44506049]
[1755307039847,3.14,187.33,187.25,3.04]
[1755307040842,3.14,187.33,187.23,3.04]
[1755307041041,3.07,187.31,187.23,3.04]
[1755307041248,134.1,187.3,187.23,3.04]
[1755307041555,3.07,187.29,187.23,3.04]
[1755307042752,3.07,187.29,187.2,3.04]
[1755307043450,3.07,187.29,187.23,3.04]
[1755307044744,3.07,187.29,187.2,3.04]
[1755307044950,3.97941779,187.28,187.2,3.04]
[1755307045151,3.07,187.27,187.2,3.04]
[1755307048348,3.97986782,187.26,187.16,3.44506049]
[1755307048548,3.07,187.24,187.18,3.04]
[1755307049150,134.08,187.23,187.18,3.04]
[1755307049449,3.07,187.22,187.18,3.04]
[1755307052961,3.07,187.22,187.14,3.04]
[1755307061069,6.51506049,187.22,187.14,3.04]
[1755307061264,3.07,187.2,187.09,3.44506049]
[1755307061464,3.98002332,187.19,187.12,3.04]
[1755307061761,3.44506049,187.19,187.12,3.04]
[1755307061962,3.07,187.18,187.12,3.04]
[1755307063471,3.97930298,187.17,187.08,3.04]
[1755307063663,3.07,187.15,187.08,3.04]
[1755307065669,3.07,187.15,187.04,3.04]
[1755307066166,3.07,187.15,186.98,118.05526235]
[1755307066167,3.07,187.15,187.0,3.04]
[1755307066369,3.07,187.12,187.05,3.04]
[1755307067272,134.02,187.14,187.07,3.44506049]
[1755307067473,137.09,187.14,187.08,3.04]
[1755307067973,3.07,187.13,186.99,3.04]
[1755307068169,3.07,187.13,187.02,3.04]
[1755307070366,3.07,187.13,187.06,0.03425404]
[1755307070565,6.51506049,187.13,187.06,3.01425404]
[1755307070761,3.06,187.12,187.06,3.01425404]
[1755307074072,134.02,187.14,187.06,0.03425404]
[1755307074073,3.44506049,187.1,187.06,0.03425404]
[1755307074275,3.06,187.09,187.06,0.03425404]
[1755307075375,3.06,187.11,187.06,0.03425404]
[1755307075576,3.06,187.11,187.07,2.98]
[1755307075966,3.06,187.11,187.06,3.01425404]
[1755307076371,3.06,187.11,187.06,0.03425404]
[1755307077074,3.06,187.11,187.07,2.98]
[1755307079275,3.96726456,187.1,187.07,2.98]
[1755307079479,3.06,187.11,187.07,2.98]
[1755307079677,3.06,187.09,187.07,2.98]
[1755307080078,134.02,187.08,187.07,2.98]
[1755307080379,137.08,187.08,187.07,2.98]
[1755307081380,134.02,187.08,187.06,0.03425404]
[1755307081679,3.06,187.07,187.06,0.03425404]
[1755307085387,7.03474352,187.07,187.06,0.03425404]
[1755307086491,3.97474352,187.07,187.06,0.03425404]
[1755307086688,7.03474352,187.07,187.06,0.03425404]
[1755307093597,3.97474352,187.07,187.06,3.01425404]
[1755307095283,134.02,187.08,187.06,3.01425404]
[1755307095488,3.06,187.07,187.06,3.01425404]
[1755307095692,7.04648718,187.07,187.06,0.03425404]
[1755307096488,7.04648718,187.07,187.06,3.01425404]
[1755307096892,7.04648718,187.07,187.06,0.03425404]
[1755307098897,7.04992262,187.07,187.06,0.03425404]
[1755307101897,7.58992262,187.07,187.02,3.05]
[1755307102097,138.49021192,187.08,186.83,359.16]
[1755307102098,3.05,187.05,187.01,3.05]
[1755307102397,3.05,187.03,187.02,3.05]
[1755307102594,7.03992262,187.03,187.02,3.05]
[1755307104297,3.98992262,187.03,187.02,3.05]
[1755307104602,133.92,187.03,187.02,3.05]
[1755307104899,0.03719579,187.04,187.02,3.05]
[1755307105202,133.9,187.03,187.02,3.05]
[1755307105501,0.03719579,187.04,187.02,3.05]
[1755307105793,133.9,187.03,187.02,3.05]
[1755307106793,137.90424514,187.03,187.02,3.05]
[1755307107300,137.90589633,187.03,187.02,3.05]
[1755307107703,140.95589633,187.03,187.02,3.05]
[1755307110003,137.90589633,187.03,187.02,3.05]
[1755307110605,137.90807999,187.03,187.02,3.05]
[1755307110902,140.95814703,187.03,187.02,3.05]
[1755307115511,137.90814703,187.03,187.02,3.05]
[1755307117410,140.95814703,187.03,187.02,3.05]
[1755307120606,137.90814703,187.03,187.02,3.05]
[1755307120910,133.85719579,187.04,187.02,3.05]
[1755307122212,136.90719579,187.04,187.02,3.05]
[1755307122603,3.05,187.03,187.02,3.05]
[1755307123505,4.0518966,187.03,186.98,3.05]
[1755307123712,7.1018966,187.02,186.98,3.05]
[1755307123910,137.8518966,187.01,186.98,3.05]
[1755307124108,133.8,187.01,186.98,3.05]
[1755307127911,3.05,187.0,186.98,3.05]
[1755307129615,133.8,187.01,186.98,3.05]
[1755307129912,136.83,187.01,186.98,3.05]
[1755307131316,133.8,187.01,186.98,3.05]
[1755307131615,3.03,187.0,186.99,3.11]
[1755307134723,133.83561546,187.01,186.99,3.11]
[1755307134917,136.86561546,187.01,186.99,3.11]
[1755307135624,3.03,187.0,186.97,3.11]
[1755307141220,3.03,187.0,186.97,8.4545]
[1755307141424,3.03,187.0,186.98,3.11]
[1755307143323,3.03,187.0,186.95,8.79006049]
[1755307143324,3.03,186.99,186.95,8.79006049]
[1755307143715,3.03,186.99,186.96,3.11]
[1755307144424,3.03,186.97,186.95,3.44506049]
[1755307144720,133.83561546,187.01,186.96,3.11]
[1755307145422,3.03,187.0,186.96,3.11]
[1755307147522,3.03,186.98,186.94,3.11]
[1755307147724,3.03,186.96,186.94,3.11]
[1755307147926,3.03,186.96,186.92,3.11]
[1755307148425,3.06513286,186.96,186.93,3.11]
[1755307148624,3.06513286,186.96,186.94,3.11]
[1755307150327,3.03,186.95,186.91,3.11]
[1755307151225,0.03513286,186.96,186.88,137.08506049]
[1755307151523,3.03,186.93,186.91,3.11]
[1755307152434,3.03,186.92,186.87,3.11]
[1755307152627,3.03,186.92,186.85,3.44506049]
[1755307152628,3.03,186.92,186.88,3.11]
[1755307153026,3.03,186.92,186.86,3.11]
[1755307153226,3.07039583,186.92,186.86,3.11]
[1755307162827,3.07039583,186.92,186.87,3.44506049]
[1755307163032,3.07039583,186.92,186.88,2.99]
[1755307163232,0.04039583,186.92,186.89,2.99]
[1755307163930,2.94,186.96,186.91,2.99]
[1755307164131,2.94,187.02,186.94,2.99]
[1755307164335,2.94,187.0,186.94,2.99]
[1755307165238,2.94,187.0,186.95,0.03624754]
[1755307165537,2.94,187.0,186.96,2.99]
[1755307166438,2.94,187.02,186.97,2.99]
[1755307166633,2.94,187.0,186.97,2.99]
[1755307166935,2.94,187.02,186.97,2.99]
[1755307167133,4.47021192,187.08,187.0,2.99]
[1755307167134,2.94,187.08,187.0,2.99]
[1755307167336,4.13337543,187.07,187.02,3.44506049]
[1755307167640,2.94,187.07,187.03,2.99]
[1755307167835,2.94,187.06,187.02,3.02753646]
[1755307168441,2.94,187.06,187.02,0.03753646]
[1755307168841,2.94,187.06,187.03,2.99]
[1755307169042,2.94,187.06,187.02,0.03753646]
[1755307169439,2.94,187.09,187.02,0.03753646]
[1755307169639,2.94,187.04,187.02,3.02753646]
[1755307169838,2.94,187.04,187.02,0.03753646]
[1755307170441,4.4781876,187.09,187.02,0.03753646]
[1755307170641,4.4781876,187.06,187.02,0.03753646]
[1755307170938,2.94,187.04,187.02,0.03753646]
[1755307171144,7.07317366,187.03,187.02,0.03753646]
[1755307171337,2.94,187.02,186.92,3.44506049]
[1755307171538,4.13317366,187.01,186.94,2.99]
[1755307171836,2.94,186.99,186.94,2.99]
[1755307172547,0.03742135,186.98,186.94,2.99]
[1755307172847,2.94,186.97,186.94,2.99]
[1755307173847,2.94,186.97,186.95,2.99]
[1755307175439,2.94,186.97,186.93,2.99]
[1755307176254,2.94,186.97,186.92,3.44506049]
[1755307176446,2.94,186.97,186.94,2.99]
[1755307176651,2.94,186.97,186.89,3.44506049]
[1755307176851,2.94,186.97,186.93,2.99]
[1755307177552,2.9750509,186.97,186.93,2.99]
[1755307178352,2.94,186.96,186.89,6.43506049]
[1755307178554,2.94,186.96,186.9,2.99]
[1755307183555,2.94,186.94,186.84,2.99]
[1755307183759,2.94,186.92,186.84,2.99]
[1755307183958,2.94,186.9,186.84,2.99]
[1755307184349,2.97401955,186.9,186.84,2.99]
[1755307185263,2.97401955,186.9,186.81,2.99]
[1755307185264,2.94,186.88,186.81,2.99]
[1755307185559,0.03401955,186.9,186.78,3.44506049]
[1755307185560,2.94,186.86,186.78,3.44506049]
[1755307185759,2.94,186.86,186.79,2.99]
[1755307186260,0.03601576,186.84,186.79,2.99]
[1755307186462,2.94,186.83,186.79,2.99]
[1755307187159,0.03601576,186.84,186.79,2.99]
[1755307187966,2.94,186.83,186.79,2.99]
[1755307188665,0.03601576,186.84,186.79,2.99]
[1755307188867,2.89,186.82,186.79,2.99]
[1755307190156,2.89,186.8,186.75,3.44506049]
[1755307190358,0.03601576,186.84,186.79,3.02]
[1755307190662,2.89,186.81,186.79,3.02]
[1755307191456,2.89,186.82,186.76,3.02]
[1755307192264,2.89,186.82,186.76,6.46506049]
[1755307192763,2.89,186.82,186.77,3.02]
[1755307193359,2.89,186.82,186.76,3.44506049]
[1755307193360,0.03490316,186.83,186.79,3.44506049]
[1755307193560,0.03490316,186.83,186.8,3.02]
[1755307193760,2.89,186.91,186.8,3.02]
[1755307193959,2.89,186.89,186.76,3.44506049]
[1755307194169,2.89,186.82,186.77,3.02]
[1755307194764,2.89,186.82,186.76,3.44506049]
[1755307194965,2.89,186.82,186.77,3.02]
[1755307195571,2.89,186.82,186.74,3.02]
[1755307195964,4.19696688,186.81,186.74,3.02]
[1755307196169,2.89,186.82,186.74,3.02]
[1755307196367,4.19632862,186.81,186.74,3.02]
[1755307196576,4.19632862,186.8,186.74,3.02]
[1755307196865,2.89,186.79,186.74,3.02]
[1755307197270,2.92900609,186.79,186.74,3.02]
[1755307197665,2.92900609,186.79,186.72,3.02]
[1755307200271,2.92900609,186.79,186.69,3.02]
[1755307200272,12.41637166,186.78,186.69,3.02]
[1755307200469,2.89,186.76,186.67,3.02]
[1755307200768,2.89,186.74,186.67,3.02]
[1755307201273,2.89,186.71,186.67,3.02]
[1755307201474,2.89,186.69,186.68,3.02]
[1755307201874,2.89,186.69,186.66,3.02]
[1755307202973,2.89,186.69,186.65,3.44506049]
[1755307202974,2.89,186.68,186.67,3.02]
[1755307203669,2.89,186.68,186.65,3.02]
[1755307204071,2.89,186.68,186.66,3.02]
[1755307204872,2.89,186.67,186.66,3.02]
[1755307206271,2.89,186.68,186.66,3.02]
[1755307206467,0.04036055,186.69,186.66,3.02]
[1755307206468,0.04036055,186.69,186.66,3.44506049]
[1755307206674,5.96034396,186.81,186.66,3.44506049]
[1755307206675,2.89,186.81,186.7,5.3523]
[1755307206967,2.89,186.81,186.66,3.98506049]
[1755307206968,2.89,186.86,186.77,3.02]
[1755307207175,4.16368738,186.85,186.77,3.02]
[1755307207374,2.89,186.83,186.77,3.02]
[1755307207870,2.89,186.83,186.79,3.44506049]
[1755307208074,2.89,186.85,186.8,3.02]
[1755307208475,3.44506049,186.92,186.8,3.02]
[1755307208670,2.89,186.84,186.81,0.03705967]
[1755307209073,2.89,186.84,186.83,3.02]
[1755307209374,3.44506049,186.92,186.83,3.02]
[1755307209573,2.89,186.92,186.83,3.02]
[1755307209779,133.46,186.94,186.86,3.02]
[1755307209978,4.17851231,186.93,186.86,3.02]
[1755307210178,2.89,186.92,186.86,3.02]
[1755307210371,2.89,186.93,186.88,0.03882904]
[1755307210572,2.89,186.91,186.88,0.03882904]
[1755307210882,2.89,186.91,186.67,3.44506049]
[1755307210883,2.89,186.89,186.78,3.02]
[1755307211075,2.89,186.87,186.78,3.02]
[1755307211276,4.17861575,186.86,186.78,3.02]
[1755307211574,2.89,186.84,186.73,3.02]
[1755307211776,2.89,186.82,186.73,3.02]